bitfinex/quotes_SOLUSD_20250118
["timestamp","ask_amount","ask_price","bid_price","bid_amount"]
[1737178431397,32.48384224,229.64,229.54,32.48384224]
[1737178431607,49.89929024,229.73,229.63,52.48384224]
[1737178431896,32.48384224,229.73,229.61,32.48384224]
[1737178432086,54.14841219,229.75,229.63,32.48384224]
[1737178432397,32.48384224,229.77,229.65,32.48384224]
[1737178432604,32.48384224,229.75,229.63,32.48384224]
[1737178432819,32.48384224,229.73,229.63,32.48384224]
[1737178432998,32.48384224,229.73,229.61,32.48384224]
[1737178433309,32.48384224,229.73,229.63,32.48384224]
[1737178433605,32.48384224,229.73,229.61,32.48384224]
[1737178434182,0.81638734,229.78,229.59,32.48384224]
[1737178434183,32.48384224,229.69,229.59,32.48384224]
[1737178434388,32.48384224,229.67,229.61,0.063]
[1737178434797,0.81658024,229.83,229.64,32.48384224]
[1737178434985,32.48384224,229.73,229.64,32.48384224]
[1737178435184,32.48384224,229.69,229.61,0.063]
[1737178435394,0.81653541,229.78,229.62,52.48384224]
[1737178435591,0.81622569,229.78,229.61,0.063]
[1737178436192,0.81646807,229.84,229.61,0.063]
[1737178436687,32.48384224,229.78,229.67,32.48384224]
[1737178436905,32.48384224,229.8,229.69,32.48384224]
[1737178437210,32.48384224,229.82,229.72,32.48384224]
[1737178438099,32.48384224,229.78,229.68,32.48384224]
[1737178438294,32.48384224,229.76,229.66,32.48384224]
[1737178438489,32.48384224,229.74,229.64,32.48384224]
[1737178438689,32.48384224,229.74,229.61,4.418]
[1737178438909,32.48384224,229.66,229.61,0.063]
[1737178439230,32.48384224,229.7,229.61,0.063]
[1737178439413,32.48384224,229.72,229.63,32.48384224]
[1737178439901,32.48384224,229.74,229.65,32.48384224]
[1737178440084,32.48384224,229.78,229.67,32.48384224]
[1737178440289,32.48384224,229.76,229.67,32.48384224]
[1737178440604,32.48384224,229.74,229.63,32.48384224]
[1737178441120,32.48384224,229.78,229.67,32.48384224]
[1737178441410,32.48384224,229.76,229.65,32.48384224]
[1737178441989,32.48384224,229.72,229.61,32.54684224]
[1737178442192,32.48384224,229.7,229.61,0.063]
[1737178442394,32.48384224,229.68,229.61,0.063]
[1737178442791,32.48384224,229.66,229.61,0.063]
[1737178443110,32.48384224,229.68,229.61,0.063]
[1737178443486,4.3521,229.77,229.63,32.48384224]
[1737178443487,32.48384224,229.72,229.63,32.48384224]
[1737178443996,32.48384224,229.74,229.65,32.48384224]
[1737178445115,32.48384224,229.69,229.61,0.063]
[1737178445411,32.48384224,229.71,229.62,32.48384224]
[1737178445608,32.48384224,229.79,229.62,32.48384224]
[1737178445809,32.48384224,229.78,229.62,0.65317348]
[1737178445990,32.48384224,229.73,229.63,32.48384224]
[1737178446492,32.48384224,229.75,229.65,32.48384224]
[1737178446692,32.48384224,229.77,229.67,32.48384224]
[1737178446892,4.35,229.88,229.69,32.48384224]
[1737178446893,32.48384224,229.79,229.69,32.48384224]
[1737178447095,32.48384224,229.81,229.69,36.83734224]
[1737178447399,32.48384224,229.83,229.71,32.48384224]
[1737178447605,32.48384224,229.83,229.73,32.48384224]
[1737178447915,32.48384224,229.85,229.73,32.48384224]
[1737178448701,32.48384224,229.83,229.73,32.48384224]
[1737178448896,4.35,229.88,229.73,32.48384224]
[1737178449121,32.48384224,229.86,229.75,32.48384224]
[1737178449419,32.51384224,229.93,229.81,32.48384224]
[1737178450498,32.48384224,229.91,229.81,32.48384224]
[1737178450701,32.48384224,229.87,229.77,32.48384224]
[1737178451093,32.48384224,229.87,229.78,4.3519]
[1737178451392,4.3493,229.92,229.81,32.48384224]
[1737178451596,32.48384224,229.92,229.81,32.48384224]
[1737178451895,32.48384224,229.88,229.77,32.48384224]
[1737178452302,15.252,229.93,229.77,32.48384224]
[1737178452502,32.48384224,229.86,229.77,32.48384224]
[1737178452704,32.48384224,229.84,229.76,4.3522]
[1737178453115,32.48384224,229.82,229.74,4.3526]
[1737178453502,32.48384224,229.84,229.74,4.3526]
[1737178454426,36.83474224,229.84,229.74,4.3526]
[1737178454813,32.48384224,229.84,229.74,4.3526]
[1737178455313,4.3505,229.86,229.74,4.3526]
[1737178455314,32.48384224,229.82,229.74,4.3526]
[1737178457535,32.48384224,229.8,229.7,4.3533]
[1737178457704,32.48384224,229.72,229.61,0.063]
[1737178458026,32.48384224,229.66,229.61,0.063]
[1737178458231,10.8759,229.87,229.67,20.0]
[1737178458524,4.3499,229.89,229.67,20.0]
[1737178458901,0.03,229.73,229.64,20.0]
[1737178459118,4.3496,229.91,229.65,0.65285357]
[1737178459322,32.48384224,229.84,229.77,20.0]
[1737178459523,32.48384224,229.84,229.75,20.0]
[1737178459727,32.48384224,229.84,229.76,4.3523]
[1737178459924,32.48384224,229.8,229.71,4.3533]
[1737178460123,32.48384224,229.78,229.71,4.3533]
[1737178460518,32.48384224,229.8,229.71,4.3533]
[1737178463329,32.48384224,229.78,229.71,4.3533]
[1737178464032,32.48384224,229.78,229.71,24.3533]
[1737178464528,32.48384224,229.74,229.64,32.48384224]
[1737178464834,32.48384224,229.76,229.66,32.48384224]
[1737178465234,32.48384224,229.8,229.7,32.48384224]
[1737178466237,36.83544224,229.8,229.71,20.0]
[1737178466422,32.48384224,229.8,229.71,20.0]
[1737178466808,34.45724793,229.9,229.71,20.0]
[1737178466809,10.8746,229.9,229.75,20.0]
[1737178467128,32.48384224,229.84,229.77,20.0]
[1737178467507,32.48384224,229.8,229.7,32.48384224]
[1737178467926,32.48384224,229.82,229.7,32.48384224]
[1737178468433,32.48384224,229.8,229.71,4.3533]
[1737178469251,32.48384224,229.77,229.69,4.3535]
[1737178469418,0.12409848,229.76,229.69,4.3535]
[1737178469732,0.12409848,229.76,229.69,24.3535]
[1737178470434,0.12409848,229.76,229.69,36.83734224]
[1737178470732,32.60794072,229.76,229.66,32.48384224]
[1737178470942,0.12409848,229.76,229.68,32.48384224]
[1737178472235,0.12409848,229.76,229.69,4.3536]
[1737178472938,6.44529419,229.75,229.69,4.3536]
[1737178473114,0.12409848,229.74,229.69,4.3536]
[1737178473819,32.60794072,229.74,229.57,1.98436463]
[1737178474025,32.48384224,229.7,229.61,36.90184224]
[1737178474326,0.12409848,229.69,229.61,4.418]
[1737178474525,32.48384224,229.68,229.61,4.418]
[1737178474832,0.12409848,229.67,229.61,0.063]
[1737178475134,32.48384224,229.66,229.61,0.063]
[1737178475336,32.48384224,229.64,229.61,0.063]
[1737178475525,0.12409848,229.63,229.61,0.063]
[1737178475925,0.12409848,229.63,229.61,36.90194224]
[1737178477137,7.203e-05,229.65,229.64,20.0]
[1737178477436,7.203e-05,229.65,229.64,56.83844224]
[1737178477618,32.48384224,229.8,229.64,67.72504224]
[1737178477813,32.48384224,229.8,229.69,32.48384224]
[1737178478019,32.48384224,229.81,229.71,32.48384224]
[1737178478419,32.48384224,229.81,229.64,35.2412]
[1737178478420,32.48384224,229.83,229.73,32.48384224]
[1737178478833,32.48384224,229.85,229.75,32.48384224]
[1737178479222,3.24052099,229.82,229.75,32.48384224]
[1737178479436,32.48384224,229.76,229.65,36.83824224]
[1737178479635,32.48384224,229.74,229.65,36.83824224]
[1737178479827,32.48384224,229.76,229.67,32.48384224]
[1737178480538,32.48384224,229.78,229.67,32.48384224]
[1737178481118,32.48384224,229.8,229.69,32.48384224]
[1737178481320,3.24052099,229.75,229.69,32.48384224]
[1737178482546,3.24052099,229.75,229.7,4.3535]
[1737178483139,3.24052099,229.74,229.7,4.3535]
[1737178483344,3.24052099,229.74,229.67,0.063]
[1737178483345,3.24052099,229.74,229.68,4.3537]
[1737178483547,3.24052099,229.74,229.68,36.83754224]
[1737178483927,3.24052099,229.74,229.72,32.48384224]
[1737178484121,32.48384224,229.86,229.75,20.0]
[1737178484337,32.48384224,229.88,229.77,32.48384224]
[1737178484748,32.48384224,229.88,229.78,15.2318]
[1737178486235,32.48384224,229.84,229.78,24.3519]
[1737178486643,32.48384224,229.84,229.76,4.3523]
[1737178487652,0.03,229.89,229.78,20.0]
[1737178487653,32.48384224,229.86,229.78,20.0]
[1737178487832,32.48384224,229.88,229.77,32.48384224]
[1737178488624,32.48384224,229.86,229.77,32.48384224]
[1737178489446,32.48384224,229.84,229.76,4.3523]
[1737178490741,32.48384224,229.86,229.76,4.3523]
[1737178491130,32.48384224,229.86,229.77,32.48384224]
[1737178491342,32.48384224,229.88,229.77,32.48384224]
[1737178491736,0.03,229.89,229.81,32.48384224]
[1737178492047,0.03,229.89,229.84,20.0]
[1737178492249,0.03,229.89,229.81,32.48384224]
[1737178493053,32.48384224,229.88,229.8,4.3516]
[1737178494345,32.48384224,229.86,229.7,10.8834]
[1737178494544,0.03,229.89,229.7,10.8834]
[1737178494545,32.48384224,229.81,229.77,0.063]
[1737178494754,15.2254,229.88,229.77,0.063]
[1737178495260,4.3502,229.88,229.77,0.063]
[1737178495441,0.03,229.89,229.77,0.063]
[1737178495442,4.3799,229.89,229.77,0.063]
[1737178496247,0.03,229.89,229.77,0.063]
[1737178496449,32.48384224,229.84,229.77,4.4151]
[1737178496754,32.48384224,229.84,229.77,0.063]
[1737178496954,32.48384224,229.78,229.77,0.063]
[1737178498065,36.83574224,229.78,229.77,0.0001]
[1737178498629,40.07791062,229.78,229.77,0.0001]
[1737178499431,3.24216838,229.78,229.77,0.0001]
[1737178499748,35.72601062,229.78,229.77,0.0001]
[1737178500942,35.72601062,229.78,229.67,0.063]
[1737178500943,20.0,229.74,229.67,0.063]
[1737178501138,64.96768448,229.68,229.67,0.063]
[1737178501535,32.48384224,229.68,229.67,0.063]
[1737178501931,64.96768448,229.68,229.61,0.063]
[1737178502153,36.83884224,229.62,229.47,32.48384224]
[1737178502351,32.48384224,229.59,229.49,32.48384224]
[1737178502553,32.48384224,229.59,229.53,4.3566]
[1737178502756,32.48384224,229.59,229.54,4.4194]
[1737178502963,32.48384224,229.63,229.55,32.48384224]
[1737178503163,4.3538,229.69,229.55,32.48384224]
[1737178503164,32.48384224,229.65,229.55,32.48384224]
[1737178503351,32.48384224,229.79,229.65,20.0]
[1737178503352,32.48384224,229.72,229.65,20.0]
[1737178503550,32.48384224,229.74,229.64,32.48384224]
[1737178503742,32.48384224,229.72,229.65,20.0]
[1737178504147,19.34436456,229.86,229.64,32.48384224]
[1737178504350,32.48384224,229.76,229.66,32.48384224]
[1737178504657,32.48384224,229.76,229.69,20.0]
[1737178504857,32.48384224,229.76,229.6,10.8885]
[1737178504858,32.48384224,229.73,229.6,10.8885]
[1737178505043,32.48384224,229.75,229.64,32.48384224]
[1737178505248,32.48384224,229.75,229.69,20.0]
[1737178505442,32.48384224,229.75,229.64,32.48384224]
[1737178505642,32.48384224,229.75,229.69,20.0]
[1737178505836,32.48384224,229.77,229.71,20.0]
[1737178506051,32.48384224,229.72,229.6,10.8885]
[1737178506264,32.48384224,229.67,229.57,32.48384224]
[1737178506442,32.48384224,229.67,229.57,10.8899]
[1737178506653,32.48384224,229.64,229.54,32.54684224]
[1737178506975,32.48384224,229.68,229.61,20.0]
[1737178507139,32.48384224,229.7,229.61,20.0]
[1737178507948,32.48384224,229.64,229.58,4.3557]
[1737178508142,32.48384224,229.62,229.56,4.356]
[1737178508356,32.48384224,229.58,229.55,0.03]
[1737178508563,32.48384224,229.56,229.55,0.03]
[1737178509155,32.48384224,229.56,229.54,0.063]
[1737178509845,32.48384224,229.6,229.54,4.4194]
[1737178510077,32.48384224,229.56,229.54,0.063]
[1737178510242,36.84014224,229.56,229.54,0.063]
[1737178510549,32.48384224,229.56,229.54,0.063]
[1737178511270,32.48384224,229.58,229.54,0.063]
[1737178511447,32.48384224,229.58,229.54,4.4194]
[1737178511754,32.48384224,229.6,229.54,4.4194]
[1737178511956,4.3541,229.67,229.54,4.4194]
[1737178511957,32.48384224,229.56,229.54,0.063]
[1737178512342,36.84004224,229.56,229.54,0.063]
[1737178513351,37.63779606,229.56,229.38,0.063]
[1737178513658,32.48384224,229.42,229.38,0.063]
[1737178513855,0.79775382,229.55,229.38,4.4224]
[1737178513856,32.48384224,229.46,229.38,4.4224]
[1737178514047,32.48384224,229.49,229.4,32.48384224]
[1737178514255,32.48384224,229.53,229.46,20.0]
[1737178514655,4.354,229.67,229.44,20.0]
[1737178514851,32.48384224,229.56,229.46,32.48384224]
[1737178515263,4.354,229.67,229.44,52.48384224]
[1737178515264,32.48384224,229.54,229.44,52.48384224]
[1737178515469,4.354,229.67,229.46,32.48384224]
[1737178515662,32.48384224,229.54,229.46,32.48384224]
[1737178515978,32.48384224,229.56,229.46,32.48384224]
[1737178516171,32.48384224,229.54,229.44,52.48384224]
[1737178516470,32.48384224,229.54,229.45,4.3582]
[1737178516965,32.48384224,229.5,229.45,4.3582]
[1737178517181,32.48384224,229.52,229.45,24.3582]
[1737178517766,32.48384224,229.52,229.42,32.48384224]
[1737178517972,32.48384224,229.48,229.43,4.3586]
[1737178518949,32.48384224,229.46,229.39,4.3593]
[1737178519263,32.48384224,229.46,229.43,0.03]
[1737178520064,15.2464,229.56,229.43,0.03]
[1737178520065,32.48384224,229.5,229.43,0.03]
[1737178520470,32.48384224,229.48,229.43,0.03]
[1737178522282,32.48384224,229.46,229.43,0.03]
[1737178522468,32.48384224,229.46,229.31,0.03]
[1737178522469,84.96768448,229.44,229.31,0.03]
[1737178522669,32.48384224,229.32,229.28,0.39]
[1737178522874,32.48384224,229.28,229.22,0.063]
[1737178523177,32.48384224,229.23,229.22,0.063]
[1737178523360,32.48384224,229.25,229.22,0.063]
[1737178523559,32.48384224,229.3,229.22,4.4255]
[1737178523761,32.48384224,229.28,229.22,4.4255]
[1737178524161,32.48384224,229.28,229.22,24.4255]
[1737178524477,32.48384224,229.3,229.22,3.4255]
[1737178524673,32.48384224,229.28,229.22,20.0]
[1737178525267,32.48384224,229.28,229.2,4.363]
[1737178525880,32.48384224,229.32,229.24,20.0]
[1737178526262,32.48384224,229.3,229.24,20.0]
[1737178526562,32.48384224,229.28,229.2,15.2705]
[1737178526763,32.48384224,229.28,229.23,20.0]
[1737178527163,32.48384224,229.3,229.24,20.0]
[1737178527576,32.48384224,229.26,229.2,4.363]
[1737178527782,32.48384224,229.24,229.2,4.363]
[1737178529163,32.48384224,229.26,229.2,4.363]
[1737178529364,32.48384224,229.3,229.25,20.0]
[1737178529763,32.48384224,229.35,229.25,20.0]
[1737178529764,32.48384224,229.28,229.25,20.0]
[1737178530065,32.48384224,229.26,229.2,4.363]
[1737178530281,32.48384224,229.24,229.2,4.363]
[1737178530881,32.48384224,229.24,229.23,0.03]
[1737178532891,32.48384224,229.26,229.23,20.03]
[1737178533986,32.48384224,229.3,229.25,20.0]
[1737178534175,0.79671107,229.43,229.29,20.0]
[1737178534176,32.48384224,229.34,229.29,20.0]
[1737178534492,32.48384224,229.32,229.24,32.48384224]
[1737178535187,32.48384224,229.34,229.27,20.0]
[1737178535399,32.48384224,229.34,229.29,20.0]
[1737178536591,32.48384224,229.34,229.26,32.48384224]
[1737178536808,32.48384224,229.36,229.29,20.0]
[1737178536994,32.48384224,229.38,229.31,20.0]
[1737178537179,32.48384224,229.36,229.31,20.0]
[1737178537988,32.48384224,229.36,229.32,4.3607]
[1737178538186,32.48384224,229.38,229.33,20.0]
[1737178538391,32.48384224,229.42,229.35,20.0]
[1737178538779,0.79671107,229.43,229.41,20.0]
[1737178539475,1.107e-05,229.43,229.41,20.05087462]
[1737178539675,20.05087462,229.5,229.41,20.05087462]
[1737178540392,20.05087462,229.52,229.47,20.0]
[1737178540899,20.05087462,229.52,229.45,20.0]
[1737178541095,0.063,229.54,229.49,20.0]
[1737178541284,0.063,229.54,229.52,20.05087462]
[1737178541483,0.063,229.54,229.51,32.54251297]
[1737178541796,32.54251297,229.53,229.45,32.54251297]
[1737178541997,32.54251297,229.53,229.43,32.54251297]
[1737178542192,32.54251297,229.53,229.42,4.3588]
[1737178542193,32.54251297,229.53,229.46,4.358]
[1737178542494,0.063,229.54,229.48,20.0]
[1737178542876,0.063,229.54,229.5,20.0]
[1737178543306,0.063,229.54,229.52,20.0]
[1737178543994,0.063,229.54,229.49,32.54251297]
[1737178544187,0.063,229.54,229.52,20.0]
[1737178544994,0.063,229.54,229.5,4.3572]
[1737178544995,0.063,229.54,229.51,32.54251297]
[1737178545483,0.063,229.54,229.53,20.0]
[1737178545897,0.0001,229.54,229.53,52.54251297]
[1737178546200,0.063,229.65,229.53,67.79101297]
[1737178546383,0.063,229.77,229.67,20.0]
[1737178546698,0.063,229.77,229.57,32.54251297]
[1737178546895,0.063,229.77,229.7,20.0]
[1737178546896,32.60551297,229.77,229.7,20.0]
[1737178547080,31.60551297,229.79,229.71,32.54251297]
[1737178547281,4.3505,229.86,229.72,32.54251297]
[1737178547481,32.54251297,229.81,229.72,32.54251297]
[1737178548094,32.54251297,229.81,229.75,20.0]
[1737178548297,32.54251297,229.81,229.73,4.3528]
[1737178548501,36.89391297,229.81,229.72,32.54251297]
[1737178548683,32.54251297,229.79,229.7,32.54251297]
[1737178548882,32.54251297,229.81,229.7,32.54251297]
[1737178550098,32.54251297,229.81,229.72,32.54251297]
[1737178550307,32.54251297,229.81,229.73,4.3529]
[1737178550528,32.54251297,229.81,229.72,32.54251297]
[1737178550529,32.54251297,229.79,229.7,32.54251297]
[1737178550808,32.60551297,229.88,229.78,32.54251297]
[1737178551105,32.54251297,229.79,229.68,32.54251297]
[1737178551286,32.54251297,229.77,229.68,32.54251297]
[1737178551602,32.54251297,229.72,229.63,36.89731297]
[1737178552100,32.54251297,229.72,229.61,4.3551]
[1737178552287,32.54251297,229.72,229.57,6.62834432]
[1737178552288,36.89571297,229.72,229.62,32.54251297]
[1737178552487,32.54251297,229.76,229.66,32.54251297]
[1737178552693,32.54251297,229.76,229.68,32.54251297]
[1737178552894,32.54251297,229.8,229.7,32.54251297]
[1737178553488,32.54251297,229.78,229.7,32.54251297]
[1737178553903,32.54251297,229.8,229.71,4.3533]
[1737178556994,32.54251297,229.76,229.66,32.54251297]
[1737178557511,32.54251297,229.76,229.63,0.03]
[1737178557512,32.54251297,229.8,229.7,32.54251297]
[1737178558811,32.54251297,229.76,229.68,32.54251297]
[1737178559112,32.54251297,229.72,229.64,4.3546]
[1737178559507,32.54251297,229.74,229.65,32.54251297]
[1737178560388,32.54251297,229.74,229.65,36.89681297]
[1737178560589,32.54251297,229.7,229.63,0.03]
[1737178561298,32.54251297,229.76,229.68,32.54251297]
[1737178561510,32.04251297,229.76,229.68,32.54251297]
[1737178561706,32.54251297,229.74,229.66,32.54251297]
[1737178562498,32.54251297,229.76,229.67,4.354]
[1737178563018,32.54251297,229.78,229.68,32.54251297]
[1737178563213,32.54251297,229.76,229.68,32.54251297]
[1737178563411,20.00195945,229.77,229.68,20.00195945]
[1737178563604,20.00195945,229.77,229.71,20.0]
[1737178563801,4.4145,229.81,229.7,20.00195945]
[1737178563802,20.00195945,229.8,229.7,20.00195945]
[1737178564203,20.00195945,229.78,229.7,20.00195945]
[1737178564605,20.00195945,229.78,229.71,4.3533]
[1737178565012,0.063,229.81,229.72,20.00195945]
[1737178565315,0.063,229.81,229.78,20.00195945]
[1737178565708,0.063,229.81,229.79,20.0]
[1737178566104,0.063,229.88,229.8,20.00195945]
[1737178566311,0.063,229.88,229.87,20.0]
[1737178566630,0.063,229.88,229.87,24.3502]
[1737178567397,0.063,229.88,229.87,4.3502]
[1737178569816,0.03,229.89,229.88,20.0]
[1737178570028,0.03,229.89,229.88,40.00195945]
[1737178570201,0.03,229.89,229.88,20.0]
[1737178571143,0.03,229.89,229.88,20.00195945]
[1737178573604,0.03,229.89,229.88,24.35195945]
[1737178573805,0.03,229.89,229.88,23.85195945]
[1737178574926,0.03,229.89,229.85,20.00195945]
[1737178575122,0.03,229.89,229.81,20.00195945]
[1737178575615,0.03,229.89,229.85,20.00195945]
[1737178577025,0.03,229.89,229.87,20.00195945]
[1737178578331,0.0001,229.89,229.87,20.00195945]
[1737178578912,0.0001,229.89,229.88,4.35]
[1737178579825,0.0001,229.89,229.85,20.00195945]
[1737178580039,0.0001,229.89,229.83,20.00195945]
[1737178580921,0.0001,229.89,229.85,24.35245945]
[1737178581125,0.0001,229.89,229.83,24.35275945]
[1737178581533,0.0001,229.89,229.85,20.00195945]
[1737178582413,0.0001,229.89,229.83,20.00195945]
[1737178583909,0.0001,229.89,229.88,20.0]
[1737178584118,0.0001,229.89,229.87,20.00195945]
[1737178584542,0.0001,229.89,229.8,15.2306]
[1737178584832,0.0001,229.89,229.88,20.00195945]
[1737178586337,0.0001,229.89,229.88,24.35195945]
[1737178586521,0.0001,229.89,229.88,24.28296992]
[1737178587349,0.03,229.93,229.91,20.0]
[1737178587543,0.03,229.93,229.92,20.00195945]
[1737178587916,0.03,229.93,229.81,4.3514]
[1737178588244,0.03,229.93,229.9,20.00195945]
[1737178590531,0.03,229.93,229.91,4.3495]
[1737178591753,0.03,229.93,229.92,20.00195945]
[1737178593642,0.03,229.93,229.92,24.35125945]
[1737178594435,0.03,229.93,229.92,24.3493]
[1737178595843,1.0,230.0,229.92,44.35125945]
[1737178596025,20.00195945,229.96,229.88,7.78824523]
[1737178596229,20.00195945,229.94,229.87,0.03]
[1737178596644,20.00195945,229.96,229.87,4.3802]
[1737178596826,20.00195945,229.98,229.88,20.00195945]
[1737178597544,6.2823,229.86,229.73,20.00195945]
[1737178597743,20.00195945,229.82,229.71,20.00195945]
[1737178597932,1.5611,229.89,229.79,20.00195945]
[1737178598129,20.00195945,229.91,229.83,20.00195945]
[1737178598525,20.00195945,229.91,229.81,20.00195945]
[1737178598734,20.00195945,229.93,229.83,20.00195945]
[1737178599549,20.00195945,229.93,229.85,20.00195945]
[1737178599747,6.2823,229.94,229.87,20.00195945]
[1737178600233,6.2823,229.94,229.87,24.35215945]
[1737178601936,6.2823,229.94,229.87,24.38215945]
[1737178602143,6.3453,229.94,229.87,24.38215945]
[1737178603138,0.063,229.94,229.89,20.00195945]
[1737178603441,0.063,229.94,229.91,20.00195945]
[1737178604149,0.063,229.94,229.93,20.00195945]
[1737178605531,0.063,229.94,229.93,24.35105945]
[1737178605761,0.063,229.94,229.87,10.9057]
[1737178605762,0.063,229.94,229.89,4.3499]
[1737178607668,0.063,229.94,229.87,4.3802]
[1737178608739,0.063,229.94,229.87,0.03]
[1737178608740,24.41395945,229.94,229.87,0.03]
[1737178608944,20.00195945,229.92,229.87,0.03]
[1737178610459,20.00195945,229.9,229.87,0.03]
[1737178610956,20.0,229.84,229.72,4.3531]
[1737178611165,20.00195945,229.81,229.73,20.00195945]
[1737178611341,20.00195945,229.83,229.75,20.00195945]
[1737178611757,6.2881,229.87,229.8,20.0]
[1737178612265,6.2881,229.87,229.72,15.2359]
[1737178612266,20.00195945,229.86,229.77,20.00195945]
[1737178613042,20.00195945,229.84,229.75,20.00195945]
[1737178613256,20.00195945,229.8,229.73,4.3527]
[1737178613760,20.00195945,229.78,229.69,20.00195945]
[1737178613962,20.00195945,229.74,229.68,4.3837]
[1737178614259,20.00195945,229.76,229.69,20.00195945]
[1737178614959,15.2265,229.86,229.7,4.3535]
[1737178614960,20.00195945,229.78,229.7,4.3535]
[1737178615166,20.00195945,229.8,229.71,20.00195945]
[1737178616161,20.00195945,229.84,229.75,20.00195945]
[1737178616342,0.063,229.94,229.78,40.00195945]
[1737178616547,20.00195945,229.9,229.8,20.00195945]
[1737178617159,20.00195945,229.92,229.82,20.00195945]
[1737178617346,0.063,229.94,229.89,20.00195945]
[1737178617741,0.063,229.94,229.92,20.0]
[1737178617955,0.063,229.94,229.87,20.00195945]
[1737178618850,0.063,229.94,229.89,20.00195945]
[1737178619052,0.063,229.94,229.92,24.3493]
[1737178619379,0.063,229.94,229.85,20.00195945]
[1737178619553,0.063,229.94,229.88,20.0]
[1737178619757,0.063,229.94,229.85,20.00195945]
[1737178620365,20.06495945,229.94,229.85,20.00195945]
[1737178620582,20.06495945,229.94,229.84,4.3508]
[1737178620583,20.00195945,229.92,229.84,4.3508]
[1737178621063,20.00195945,229.86,229.78,6.05651714]
[1737178621371,20.00195945,229.84,229.76,6.55850473]
[1737178621770,20.00195945,229.84,229.75,20.00195945]
[1737178622458,20.00195945,229.84,229.77,4.3521]
[1737178623170,20.00195945,229.88,229.77,20.00195945]
[1737178623371,20.00195945,229.84,229.73,30.41117659]
[1737178623671,20.00195945,229.8,229.73,4.3527]
[1737178624367,20.00195945,229.78,229.69,20.00195945]
[1737178624867,20.00195945,229.78,229.69,24.35545945]
[1737178625070,20.00195945,229.81,229.77,0.03]
[1737178625269,6.2881,229.89,229.77,0.03]
[1737178625270,20.00195945,229.83,229.77,0.03]
[1737178625470,20.00195945,229.85,229.77,0.03]
[1737178625850,6.2881,229.89,229.79,40.00195945]
[1737178626054,20.00195945,229.92,229.83,20.00195945]
[1737178626462,26.50225945,229.97,229.9,20.0]
[1737178626777,20.03195945,229.97,229.9,20.0]
[1737178627363,0.03,229.97,229.9,20.0]
[1737178627673,0.03,229.97,229.9,4.3497]
[1737178627878,0.03,229.97,229.92,20.0]
[1737178628256,0.03,229.97,229.93,20.0]
[1737178629067,0.03,229.97,229.93,24.35105945]
[1737178631482,0.03,229.97,229.89,15.2244]
[1737178631672,20.03195945,229.97,229.89,15.2244]
[1737178631981,20.03195945,229.97,229.89,4.3499]
[1737178633078,20.03195945,229.97,229.86,20.00195945]
[1737178633381,20.03195945,229.97,229.87,4.3502]
[1737178633680,20.00195945,229.93,229.87,4.3502]
[1737178633878,20.03195945,229.97,229.88,20.00195945]
[1737178634085,0.03,229.97,229.91,20.0]
[1737178635180,0.03,229.97,229.92,24.35125945]
[1737178635387,0.03,229.97,229.92,4.3493]
[1737178636074,0.03,229.97,229.92,24.3493]
[1737178636276,0.03,229.97,229.93,20.0]
[1737178637397,0.03,229.97,229.92,24.3493]
[1737178639413,0.03,229.97,229.92,4.3493]
[1737178639414,20.03195945,229.97,229.92,4.3493]
[1737178639784,20.03195945,229.97,229.88,4.35]
[1737178639986,0.03,229.97,229.91,40.00195945]
[1737178640192,0.03,229.97,229.93,20.00195945]
[1737178640782,0.03,229.97,229.93,20.0]
[1737178641085,0.03,229.97,229.93,40.00195945]
[1737178641602,0.03,229.97,229.93,44.35105945]
[1737178641782,0.0001,229.94,229.93,44.35105945]
[1737178641984,0.0001,229.94,229.93,4.3491]
[1737178642301,0.0001,229.94,229.93,24.35105945]
[1737178642513,0.0001,229.94,229.93,44.35105945]
[1737178642716,0.0001,229.94,229.93,24.35105945]
[1737178642999,6.789449,230.27,229.98,33.08]
[1737178643182,6.789449,230.27,230.14,20.0]
[1737178643380,6.789449,230.27,230.25,20.00195945]